Cogmind - Beta 15 @@@ ROGUE MODE // 2025.05.06 @ 16:58:11 Player: woegarden Result: Destroyed by G-47 Trooper with Particle Gun Performance ------------- Evolutions (2) 1000 Regions Visited (3) 600 Robots Destroyed (40) 200 Value Destroyed (1024) 1024 Prototype IDs (4) 80 Alien Tech Used (0) 0 Bonus (0) 0 TOTAL SCORE: 2904 Bonus ------- None Cogmind --------- Core Integrity 0/550 Matter 242/300 Energy 100/100 System Corruption 7% Temperature Cool (9) Movement Core (50) Location -8/Materials Parts ------- > --- POWER (1) -------- (None) > --- PROPULSION (3) --- (None) > --- UTILITY (4) ------ Hacking Suite > --- WEAPON (3) ------- (None) > --- INVENTORY (5) ---- Huge Storage Unit Structural Scanner Terrain Scan Processor Tractor Beam Peak State ------------ > --- POWER ------------ Ion Engine > --- PROPULSION ------- Light Treads Light Treads Light Treads > --- UTILITY ---------- Huge Storage Unit Weight Redist. System Improved Targeting Computer Improved Weapon Shielding > --- WEAPON ----------- Field Laser Heavy Assault Rifle Light Cannon > --- INVENTORY -------- Ion Engine Improved Ion Engine Improved Heat Sink High-capacity Storage Unit High-capacity Matter Pod Structural Scanner Visual Processing Unit Terrain Scan Processor Seismic Detector Utility Shielding Improved Weapon Shielding Improved Weapon Shielding Tractor Beam Advanced Beam Cannon Minigun Minigun High-powered Shotgun High-powered Shotgun Grenade Launcher Mini Grenade Launcher [Rating: 22] Favorites ----------- Power Ion Engine Engine Ion Engine Propulsion Light Treads Treads Light Treads Leg Aluminum Leg Wheel Compact Wheel Utility High-capacity Storage Unit Device Weight Redist. System Storage High-capacity Storage Unit Processor Improved Targeting Computer Hackware Hacking Suite Protection Improved Weapon Shielding Weapon Assault Rifle Energy Gun Heavy EM Pulse Gun Ballistic Gun Assault Rifle Ballistic Cannon Light Cannon Launcher Mini Grenade Launcher Build | -11 -10 -9 -8 ------- Run | Yrd Mat Mat Mat Slots Evolved 4 | . . 2 2 Power . | . . . . Propulsion 1 | . . 1 . Utility 2 | . . 1 1 Weapon 1 | . . . 1 Parts Attached 39 | . 19 11 9 Power 6 | . 3 . 3 Engine 6 | . 3 . 3 Core . | . . . . Reactor . | . . . . Propulsion 8 | . 5 2 1 Treads 5 | . 3 2 . Leg 1 | . . . 1 Wheel 2 | . 2 . . Hover . | . . . . Flight . | . . . . Utility 12 | . 5 4 3 Device 3 | . 1 2 . Storage 5 | . 4 1 . Processor 1 | . . 1 . Hackware 1 | . . . 1 Protection 2 | . . . 2 Artifact . | . . . . Weapon 13 | . 6 5 2 Energy Gun 6 | . 4 1 1 Energy Cannon . | . . . . Ballistic Gun 5 | . 2 3 . Ballistic Cannon 1 | . . 1 . Launcher 1 | . . . 1 Special Weapon . | . . . . Impact Weapon . | . . . . Slashing Weapon . | . . . . Piercing Weapon . | . . . . Special Melee Weapon . | . . . . Unidentified Prototypes 1 | . . . 1 Parts Lost 13 | . 2 4 7 Power 3 | . 1 . 2 Propulsion 6 | . 1 2 3 Utility 3 | . . 1 2 Weapon 1 | . . 1 . Highest Loss Streak 4 | . 1 2 4 To Critical Strikes . | . . . . Average Backups 13 | 6 10 19 14 Power 1 | 1 . 1 1 Propulsion . | 4 1 . . Utility 8 | . 7 11 8 Weapon 2 | 1 1 4 4 Tool/Special . | . . . . Unused Backups 29 | . 11 6 12 Power 2 | . 2 . . Propulsion 8 | . 4 4 . Utility 12 | . 3 1 8 Weapon 6 | . 2 1 3 Tool/Special 1 | . . . 1 Average Slot Usage (%) 91 | . 92 98 63 Engine 12 | . 13 11 7 Treads 26 | . 25 32 13 Leg 1 | . 1 . 1 Device 9 | . 7 14 5 Storage 12 | . 14 11 5 Processor 2 | . . 6 5 Energy Gun 13 | . 18 5 5 Ballistic Gun 9 | . 9 11 6 Ballistic Cannon 2 | . . 5 5 Peak Build Rating 22 | 6 11 17 22 Average Rating 11 | 6 9 15 14 On Entrance 9 | 6 6 9 16 Naked Turns . | . . . . Heaviest Build 96 | 13 50 91 96 Greatest Support 66 | 20 40 66 66 Greatest Overweight (x) 17 | . 1 1 17 Average Overweight (x) . | . . . 1 Largest Inventory Capacity 25 | 8 20 25 25 Average Capacity 17 | 8 14 22 17 Most Carried 24 | 6 16 24 23 Average Carried 13 | 6 10 19 13 Final Capacity 25 | 8 20 25 20 Final Carried 24 | 6 16 24 19 Class Distribution -------------------- 94% | Mutant 5% | Gunner Dominant Class ---------------- Mutant | -10/Materials Mutant | -9/Materials Gunner | -8/Materials Resources | -11 -10 -9 -8 ----------- Run | Yrd Mat Mat Mat Matter Collected 1222 | 200 603 328 91 Remotely . | . . . . Salvage Created 1591 | . 913 590 88 Parts 94 | . 48 41 5 Haulers Intercepted 2 | . 1 1 . Recyclers Shooed 9 | . 6 1 2 Parts Field Recycled . | . . . . Retrieved Matter . | . . . . Parts Self-Destructed . | . . . . Prevented . | . . . . Kills | -11 -10 -9 -8 ------- Run | Yrd Mat Mat Mat Combat Hostiles Destroyed 30 | . 14 14 2 Guns 26 | . 14 11 1 Cannons 4 | . . 3 1 Classes Destroyed 8 | . 6 2 . Builder 2 | . 2 . . Tunneler 1 | . 1 . . Hauler 2 | . 1 1 . Recycler 4 | . 2 2 . Watcher 1 | . 1 . . Swarmer 6 | . . 6 . Grunt 22 | . 14 6 2 Sentry 2 | . . 2 . Best Kill Streak 5 | . 5 4 1 Combat Bots Only 4 | . 4 4 1 Max Kills in Single Turn 1 | . 1 1 1 Gunslinging . | . . . . Exploded . | . . . . Melee . | . . . . Uniques/NPCs Destroyed . | . . . . Combat | -11 -10 -9 -8 -------- Run | Yrd Mat Mat Mat Hostile Shots Fired 271 | . 68 102 101 Missed 80 | . 15 33 32 Hits 191 | . 53 69 69 Projectile 191 | . 53 69 69 Critical Strikes 4 | . . 2 2 Damage Taken 2703 | . 691 863 1149 Core 861 | . 154 153 554 Absorbed by Shields . | . . . . Redirected to Shielding 104 | . . . 104 Core Remaining (%) 66 | 100 38 61 . Volleys Fired 129 | . 79 41 9 Largest 3 | . 2 2 3 Hottest 116 | . 90 81 116 Shots Fired 265 | . 158 81 26 Gun 238 | . 158 63 17 Cannon 27 | . . 18 9 Launcher . | . . . . Special . | . . . . Kinetic 110 | . 33 59 18 Thermal 89 | . 74 7 8 Explosive . | . . . . Electromagnetic 66 | . 51 15 . Robot Hit Streak 24 | . 24 13 16 Robot Miss Streak 3 | . 3 3 3 Penetration Max . | . . . . Secondary Targets 5 | . 1 4 . Max Gunslinging Chain 1 | . 1 1 . Shots Hit Robots 169 | . 100 55 14 Core Hits 65 | . 39 21 5 Critical Kills . | . . . . Critical Parts Destroyed . | . . . . Critical Strikes 4 | . 4 . . Burn 1 | . 1 . . Corrupt 3 | . 3 . . Melee Attacks . | . . . . Impact . | . . . . Slashing . | . . . . Piercing . | . . . . Sneak Attacks . | . . . . Combat Hostiles . | . . . . Follow-up Attacks . | . . . . Damage Inflicted 2510 | . 1343 895 272 Guns 2157 | . 1330 654 173 Cannons 286 | . . 218 68 Explosions . | . . . . Melee . | . . . . Ramming 67 | . 13 23 31 Kinetic 1120 | . 258 689 173 Thermal 755 | . 614 73 68 Explosive . | . . . . Electromagnetic 568 | . 458 110 . Impact . | . . . . Slashing . | . . . . Piercing . | . . . . Highest Corruption 7 | . . . 7 Average Corruption 4 | . . . 4 Corruption Purged . | . . . . Corruption Blocked . | . . . . Effects 7 | . . . 7 Message Errors 2 | . . . 2 Matter Fused 2 | . . . 2 Heat Flow Errors 2 | . . . 2 Energy Discharges 1 | . . . 1 Overload Shots . | . . . . Overflow Damage . | . . . . Projectiles . | . . . . Explosions . | . . . . Melee . | . . . . Knockbacks 3 | . . 1 2 Impact . | . . . . Kinetic 3 | . . 1 2 Secondary . | . . . . Self-Inflicted Damage 14 | . . . 14 Shots . | . . . . Rammed 17 | . 2 3 12 Targets Rammed 20 | . 5 3 12 Kicked 3 | . 3 . . Crushed . | . . . . Highest Temperature 217 | . 183 49 217 Average Temperature 45 | . 37 13 97 Received Heat Transfer 1296 | . 384 282 630 Siege Activations . | . . . . Martial Activations . | . . . . Shielding Activations . | . . . . Robots Disrupted 1 | . 1 . . Combat Hostiles 1 | . 1 . . Robots Corrupted . | . . . . Combat Hostiles . | . . . . Parts Fried . | . . . . Impact Corruptions . | . . . . Robots Melted . | . . . . Combat Hostiles . | . . . . Parts Melted 3 | . 3 . . Heat Transferred 1996 | . 1663 185 148 Parts Sabotaged . | . . . . Parts Stolen . | . . . . Parts Stripped . | . . . . Power Chain Reactions . | . . . . Alert | -11 -10 -9 -8 ------- Run | Yrd Mat Mat Mat Maximum Alert Level . | . . . . Low Security (%) 100 | 100 100 100 100 Level 1 . | . . . . Level 2 . | . . . . Level 3 . | . . . . Level 4 . | . . . . Level 5 . | . . . . High Security . | . . . . Max Security . | . . . . Peak Influence 105 | . 85 105 50 Initial 14 | . . 14 . Average 20 | . 15 36 5 Influence Increases 912 | . 406 406 100 Destroy 0b10 Robot/C 600 | . 280 280 40 Destroy 0b10 Robot/NC 50 | . 35 15 . Destroy Leader 146 | . 84 62 . Successful Hack 25 | . 7 18 . Destroy Structure 1 | . . 1 . Lose Combat Pursuer 90 | . . 30 60 Influence Decreases 862 | . 371 441 50 Entered New Map 21 | . . 21 . Time Decay 774 | . 354 380 40 Lost Part 67 | . 17 40 10 Squads Dispatched 9 | . 5 2 2 Investigation 6 | . 3 2 1 Extermination . | . . . . Reinforcement 3 | . 2 . 1 Assault . | . . . . Garrison . | . . . . Intercept . | . . . . Searches Triggered . | . . . . Construction Impeded . | . . . . Haulers Reinforced . | . . . . Active Scanning Responses . | . . . . Cargo Convoy Interrupts . | . . . . Stealth | -11 -10 -9 -8 --------- Run | Yrd Mat Mat Mat Distress Signals 2 | . 2 . . Communications Jammed . | . . . . Distress Signals . | . . . . Times Spotted 70 | . 29 24 17 Peak Tracking Total 11 | . 3 4 11 Tactical Retreats 4 | . . 2 2 Traps | -11 -10 -9 -8 ------- Run | Yrd Mat Mat Mat Traps Triggered 3 | . 2 . 1 Indirectly . | . . . . Trap Hack Attempts . | . . . . Triggered . | . . . . Disarmed . | . . . . Reprogrammed . | . . . . Reused . | . . . . Traps Extracted . | . . . . Installed . | . . . . Triggered . | . . . . Machines | -11 -10 -9 -8 ---------- Run | Yrd Mat Mat Mat Machines Disabled . | . . . . Max in Single Turn . | . . . . Machines Repaired . | . . . . Machines Dismantled . | . . . . Machines Sabotaged . | . . . . Overloaded Fab Kills . | . . . . Hacking | -11 -10 -9 -8 --------- Run | Yrd Mat Mat Mat Machines Accessed 5 | . 3 2 . Terminals 3 | . 1 2 . Fabricators . | . . . . Repair Stations . | . . . . Recycling Units 2 | . 2 . . Scanalyzers . | . . . . Garrison Access . | . . . . Total Hacks 15 | . 9 6 . Successful 15 | . 9 6 . Failed . | . . . . Catastrophic . | . . . . Database Lockouts . | . . . . Manual . | . . . . Terminals 13 | . 7 6 . Fabricators . | . . . . Repair Stations . | . . . . Recycling Units 2 | . 2 . . Scanalyzers . | . . . . Garrison Access . | . . . . Terminal Hacks 13 | . 7 6 . Record 4 | . 3 1 . Robot Analysis 1 | . . 1 . Prototype ID Bank 2 | . 1 1 . Level Access Points 1 | . . 1 . Emergency Access Points 1 | . . 1 . Alert Level 1 | . 1 . . Hauler Manifests 2 | . 1 1 . Zone Layout 1 | . 1 . . Fabricator Hacks . | . . . . Repair Station Hacks . | . . . . Recycling Unit Hacks 2 | . 2 . . Process 1 | . 1 . . Retrieve Components 1 | . 1 . . Scanalyzer . | . . . . Garrison Access Hacks . | . . . . Unauthorized Hacks . | . . . . Terminals . | . . . . Fabricators . | . . . . Repair Stations . | . . . . Recycling Units . | . . . . Scanalyzers . | . . . . Garrison Access . | . . . . Data Cores Recovered . | . . . . Used . | . . . . Hacking Detections 3 | . 1 2 . Full Trace Events 3 | . 1 2 . Feedback Events . | . . . . Feedback Blocked . | . . . . Robot Schematics Acquired . | . . . . Robots Built . | . . . . Authchips . | . . . . Time . | . . . . Total Robot Build Rating . | . . . . Part Schematics Acquired . | . . . . Parts Built . | . . . . Authchips . | . . . . Time . | . . . . Total Part Build Rating . | . . . . Parts Repaired . | . . . . Time . | . . . . Parts Recycled . | . . . . Recycled Matter 135 | . 135 . . Retrieved Matter . | . . . . Retrieved Components 10 | . 10 . . Parts Scanalyzed . | . . . . Part Schematics Acquired . | . . . . Parts Damaged . | . . . . Bothacking | -11 -10 -9 -8 ------------ Run | Yrd Mat Mat Mat Used RIF Installer . | . . . . Robots Hacked . | . . . . Non-combat . | . . . . Combat . | . . . . Robot Hacks Applied . | . . . . Relay Couplers Released . | . . . . Fabnet Peak Effective % . | . . . . Robots Rewired . | . . . . Allies Hacked . | . . . . Hacks Repelled . | . . . . Allies | -11 -10 -9 -8 -------- Run | Yrd Mat Mat Mat Total Allies . | . . . . Largest Group . | . . . . Highest-Rated Group . | . . . . Highest-Rated Ally . | . . . . Total Orders . | . . . . Ally Attacks . | . . . . Total Damage . | . . . . Kills . | . . . . Allies Corrupted . | . . . . Allies Melted . | . . . . Intel | -11 -10 -9 -8 ------- Run | Yrd Mat Mat Mat Active Infowar (turns) 375 | . . 375 . Terrain 375 | . . 375 . Robot Analysis Total 1 | . . 1 . Derelict Logs Recovered . | . . . . Drone Launches . | . . . . Drone Recoveries . | . . . . Exploration | -11 -10 -9 -8 ------------- Run | Yrd Mat Mat Mat Turns Passed 3463 | 2 2111 1039 311 Spaces Moved 1524 | 2 952 434 136 Core 58 | . . . 58 Treads 1354 | . 872 434 48 Legs 85 | 2 53 . 30 Wheels 27 | . 27 . . Hover . | . . . . Flight . | . . . . Fastest Speed 50 | 120 100 160 50 Average Speed 188 | 120 186 198 174 Slowest Speed 900 | 120 240 240 900 Overloaded Moves . | . . . . Propulsion Burnouts . | . . . . Robots Hopped . | . . . . Potential Cave-ins . | . . . . Cave-ins Triggered . | . . . . Exploration Rate (%) 39 | 2 95 43 19 Regions Visited 3 Branch Regions . Pre-discovered Areas . | . . . . Known Exits Taken 1 | . . 1 . Unknown Exits Taken 2 | 1 1 . . Scrap Searched . | . . . . Spaces Dug . | . . . . Terrain Destroyed . | . . . . Melee . | . . . . Projectile . | . . . . AOE . | . . . . Terrain Rammed . | . . . . Walls Destroyed . | . . . . Machines Disabled . | . . . . Actions | -11 -10 -9 -8 --------- Run | Yrd Mat Mat Mat Total 1850 | 1 1130 530 189 Wait 50 | . 30 10 10 Move 1521 | 1 951 433 136 Hop . | . . . . Pick Up 43 | . 21 19 3 Fast Attach 11 | . 7 1 3 Attach 16 | . 3 6 7 Detach . | . . . . Swap 24 | . 13 9 2 Drop 36 | . 21 8 7 Fire 129 | . 79 41 9 Melee . | . . . . Ram 12 | . . . 12 Kick 3 | . 3 . . Crush 5 | . 2 3 . Escape Stasis . | . . . . Rewire . | . . . . Trap . | . . . . Miscellaneous . | . . . . Route ------- -11/Scrapyard -10/Materials (discovered 5 exits: *Mat x3 / [*Min x2]) -9/Materials (discovered 3 exits: *Mat x3) -8/Materials History --------- Turn | Location | Event 1 | -11/Scrapyard | Discovered new exit (range 1) 3 | -11/Scrapyard | Entered Materials 102 | -10/Materials | Discovered new exit (range 13) 194 | -10/Materials | Core integrity fell below 50% 307 | -10/Materials | Build established: Mutant 528 | -10/Materials | Discovered new exit (range 10) 1741 | -10/Materials | Discovered new exit (range 13) 1816 | -10/Materials | Discovered new exit (range 3) 1926 | -10/Materials | Discovered new exit (range 9) 2114 | -10/Materials | Entered another Materials area 2114 | -9/Materials | Evolved 2 slots: Propulsion x1, Utility x1 2747 | -9/Materials | Identified exit to Materials 3153 | -9/Materials | Entered another Materials area 3153 | -8/Materials | Evolved 2 slots: Utility x1, Weapon x1 3350 | -8/Materials | Released all parts (6) 3381 | -8/Materials | Lost 4 parts (2n2u) 3421 | -8/Materials | Core integrity fell below 50% 3455 | -8/Materials | Core integrity fell below 20% 3464 | -8/Materials | Destroyed by G-47 Trooper with Particle Gun Last Messages --------------- 03395_ Dropped Minigun. 03396_ Slammed into G-47 Trooper. 03397_ Critical hit (Burn: +37). 03397_ Slammed into K-01 Serf. 03424_ System corrupted: Heat flow error (+233). 03427_ Acquired Hacking Suite. 03437_ Imp. Ion Engine destroyed. 03449_ System corrupted: Heat flow error (+196). 03451_ Slammed into W-25 Informer. 03451_ Destabilizing: Core damaged (-11). 03452_ Slammed into W-25 Informer. 03453_ Slammed into G-47 Trooper. 03455_ Slammed into G-50 Soldier. 03456_ Slammed into G-47 Trooper. 03458_ Destabilizing: System corrupted (+2). 03459_ Slammed into G-47 Trooper. 03459_ Destabilizing: System corrupted (+1). 03460_ Slammed into K-01 Serf. 03462_ U-05 Engineer destroyed. 03462_ Acquired Terrain Scan Processor. Map ----- +----------------------------------------------------+ | ??????????????????????????????? | | ??????????????????????????????? [ | | ???????????????????????????????? ] | | ???????????????????????????????? ! | | ?????????????????????????????????########+#####%[! | | ??????????????????????????????????????? ?????+!]! | | ?????????????????????????????????????? ??????###! | | ????????????????????????????????????????????????# | | ????????????????????????????????????????????????# | | ??????????????????????????? ??????????????????# | | ??????????????????????????? #?????????????????# | | ??????????????????????????? #?????????????????# | | ??????????????????????????# #?????????????????# | | ??????????????????????????# #?????????????????# | | ??????????????????????????# #??????#########??# | | ??????????????????????????# #??????# #??# | | ??????????????????????????# #??????# #### | | ??????????????????????????# #??????# ! =/[ | | ??????????????????????????# #??????# # ### | | ??????????????????????????# #??????##+###### #?? | | ??????????????????????????# k #??????# #?? | | ??????????????????????????# #??????# #?? | | ???????????????????####+### +??????# """ ""#?? | | ???????????????????# #??????# """ T"#?? | | ???????????????????+ ! #??????# """ ""#?? | | ???????????????????# @ %|g#??????# #?? | | ???????????????????####+##### #??????# #?? | | ????????????????????????????# #??????# ##### #?? | | ????????????????????????????# #??????# #???# #?? | | ????????????????????????????# #??????# #???# #?? | | ????????????????????????????# #??????# #???# #?? | | ????????????????????????????# #??????# #???# #?? | | ????????????????????????????# #??????+ #???# #?? | | ????????????????????????????# #??????# #####/##? | | ????????????????????????????# #??????# # #? | | ???????????????????????????##/#####??# # T #? | | ???????????????????????????# #??# # ]#? | | ???????????????????????????# """#??# / #? | | ???????????????????????????# """#??# # #? | | ???????????????????????????# """#??# # #? | | ???????????????????????????# #??# ########? | | ???????????????????????????# #??# #???????? | | ???????????????????????????##+##+##??# #???????? | | ????????????????????????????# #???# #???????? | | ????????????????????????????# #??## ##??????? | | ???????????????????????????## #??# #??????? | | ?????????????????????????### #### #??????? | | ?????????????????? +??????? | | ????????????????? ###### #??????? | | ?????????????????? #########?????# #??????? | +----------------------------------------------------+ Best States ------------- Heat Dissipation 39 Energy Generation 12 Energy Capacity 265 Matter Stores 300 Matter Capacity 300 Sight Range 16 Terrain Scan Range 16 Terrain Scan Density 10 Additional Mass Support 6 Utility Shielding 33 Weapon Shielding 66 Evasion (%) 55 Targeting Accuracy 6 Recoil Reduction 3 Offensive Hacking 10 Item Schematics ----------------- None Robot Schematics ------------------ None Fabricated ------------ Nothing Repaired ---------- Nothing Alien Tech Used ----------------- None Achievements -------------- None Challenges ------------ None Game ------ Seed ThrusterTechProcessor Manual? 0 Play Time 00:36:13 Cumulative 106.6 hours Start 2025.05.06 @ 16:24:14 End 2025.05.06 @ 16:58:11 Sessions 1 Manual Loads 0 Difficulty Rogue Special Mode None Game No. 180 Rogue 134 Adventurer 45 Explorer 1 Win Type - Total 0 Types 0/0/0/0/0/0/0/0/0/0 Lore% 17 Gallery% 42 Achievement% 36 Wizard Run 0 Options --------- Layout 1 ASCII 0 Keyboard 0 Movement Mouse Keybinds 0 Fullscreen 1 Font 32/SmallcapsGlow Map View 50x35 Zoom Use 2% Tactical HUD 1 Map Filters NONE Filters LOW_CONTRAST(13,24,33)|BRIGHTNESS(90)|SATURATION(87) Steam 1 RUN: 0f31fa10-ba58-45f4-8bd0-78b55293117e